Cogmind - Beta 15 *** ADVENTURER MODE // 2025.07.19 @ 15:12:27 Player: Drew_P_Bawls Result: Destroyed by G-47 Trooper with Particle Gun Performance ------------- Evolutions (2) 1000 Regions Visited (5) 1000 Robots Destroyed (52) 260 Value Destroyed (1524) 1524 Prototype IDs (3) 60 Alien Tech Used (0) 0 Bonus (155) 155 TOTAL SCORE: 3999 Bonus ------- Follower Combat Kills 155 Cogmind --------- Core Integrity 0/550 Matter 300/300 Energy 100/100 System Corruption 2% Temperature Cool (14) Movement Core (350) Ox6 Location -8/Materials Parts ------- > --- POWER (2) -------- (None) > --- PROPULSION (2) --- (None) > --- UTILITY (4) ------ Large Storage Unit > --- WEAPON (3) ------- (None) > --- INVENTORY (15) --- Large Storage Unit High-capacity Battery (250) Medium Matter Pod (100) Tractor Beam Field Recycling Unit (0) Beam Rifle Particle Cannon Peak State ------------ > --- POWER ------------ Improved Ion Engine Improved Ion Engine > --- PROPULSION ------- Light Treads Improved Treads > --- UTILITY ---------- Large Storage Unit Large Matter Pod Targeting Computer Light Armor Plating > --- WEAPON ----------- Beam Cannon Assault Rifle Heavy Assault Rifle > --- INVENTORY -------- Light Ion Engine Light Treads Aluminum Leg Aluminum Leg Large Storage Unit High-capacity Battery Medium Matter Pod Tractor Beam Beam Rifle Particle Gun Particle Cannon Ion Cannon Light Assault Rifle Shotgun [Rating: 17] Favorites ----------- Power Improved Ion Engine Engine Improved Ion Engine Propulsion Light Treads Treads Light Treads Wheel Wheel Utility Large Storage Unit Storage Large Storage Unit Processor Targeting Computer Protection Light Armor Plating Weapon Assault Rifle Energy Gun Particle Gun Energy Cannon Beam Cannon Ballistic Gun Assault Rifle Slashing Weapon Mining Claw Build | -11 -10 -10 -9 -9 -8 ------- Run | Yrd Mat Min Mat Sto Mat Slots Evolved 4 | . . . 2 . 2 Power 1 | . . . 1 . . Propulsion . | . . . . . . Utility 2 | . . . 1 . 1 Weapon 1 | . . . . . 1 Parts Attached 43 | 5 4 . 11 16 7 Power 10 | 1 1 . 1 6 1 Engine 10 | 1 1 . 1 6 1 Core . | . . . . . . Reactor . | . . . . . . Propulsion 7 | 2 . . 1 4 . Treads 5 | . . . 1 4 . Leg . | . . . . . . Wheel 2 | 2 . . . . . Hover . | . . . . . . Flight . | . . . . . . Utility 12 | . 3 . 4 3 2 Device . | . . . . . . Storage 6 | . 3 . 2 1 . Processor 1 | . . . . . 1 Hackware . | . . . . . . Protection 5 | . . . 2 2 1 Artifact . | . . . . . . Weapon 14 | 2 . . 5 3 4 Energy Gun 2 | . . . 1 . 1 Energy Cannon 3 | . . . . 1 2 Ballistic Gun 8 | 2 . . 4 1 1 Ballistic Cannon . | . . . . . . Launcher . | . . . . . . Special Weapon . | . . . . . . Impact Weapon . | . . . . . . Slashing Weapon 1 | . . . . 1 . Piercing Weapon . | . . . . . . Special Melee Weapon . | . . . . . . Unidentified Prototypes 1 | . . . 1 . . Parts Lost 20 | . . . 1 5 14 Power 6 | . . . . 2 4 Propulsion 4 | . . . 1 2 1 Utility 4 | . . . . 1 3 Weapon 6 | . . . . . 6 Highest Loss Streak 14 | . . . 1 5 14 To Critical Strikes . | . . . . . . Average Backups 12 | 1 5 13 14 14 13 Power . | . . 2 1 . 1 Propulsion 1 | . . 1 2 2 1 Utility 4 | . 3 5 3 5 5 Weapon 5 | 1 2 3 6 6 5 Tool/Special . | . . . . . . Unused Backups 12 | . . 1 2 3 6 Power . | . . . . . . Propulsion 4 | . . . . 2 2 Utility 6 | . . 1 1 . 4 Weapon 2 | . . . 1 1 . Tool/Special . | . . . . . . Average Slot Usage (%) 95 | . 82 100 98 96 92 Engine 18 | . 14 14 22 19 16 Treads 14 | . . . 2 20 15 Wheel 6 | . 28 28 18 . . Storage 22 | . 11 28 29 22 17 Processor 2 | . . . . . 8 Protection 7 | . . . 2 10 8 Energy Cannon 4 | . . . . 6 8 Ballistic Gun 17 | . 28 28 20 14 16 Peak Build Rating 17 | 5 7 8 13 14 17 Average Rating 11 | 4 5 7 12 11 15 On Entrance 7 | . 5 7 8 12 14 Naked Turns . | . . . . . . Heaviest Build 48 | 7 31 31 39 46 48 Greatest Support 43 | 20 20 20 20 43 43 Greatest Overweight (x) 12 | . 1 1 3 10 12 Average Overweight (x) . | . . 1 1 . 1 Largest Inventory Capacity 15 | 5 15 15 15 15 15 Average Capacity 13 | 5 13 15 15 15 15 Most Carried 15 | 2 9 15 15 15 15 Average Carried 12 | 1 5 14 14 14 14 Final Capacity 15 | 5 15 15 15 15 15 Final Carried 15 | 2 9 15 15 15 7 Class Distribution -------------------- 47% | Mutant 27% | Scavenger-Mutant 19% | Scavenger-Gunner 5% | Commander-Mutant Dominant Class ---------------- Mutant | -10/Materials Mutant | -10/Mines Mutant | -9/Materials Scavenger-Mutant | -9/Storage Scavenger-Gunner | -8/Materials Resources | -11 -10 -10 -9 -9 -8 ----------- Run | Yrd Mat Min Mat Sto Mat Matter Collected 1622 | 262 . 156 740 311 153 Remotely . | . . . . . . Salvage Created 2024 | 50 70 42 677 691 494 Parts 110 | 1 2 6 27 46 28 Haulers Intercepted 1 | . . . . . 1 Recyclers Shooed 2 | . . . 1 . 1 Parts Field Recycled . | . . . . . . Retrieved Matter . | . . . . . . Parts Self-Destructed . | . . . . . . Prevented . | . . . . . . Kills | -11 -10 -10 -9 -9 -8 ------- Run | Yrd Mat Min Mat Sto Mat Combat Hostiles Destroyed 45 | 1 1 3 16 15 9 Guns 36 | 1 1 3 16 8 7 Cannons 8 | . . . . 7 1 Classes Destroyed 8 | 1 1 1 2 1 2 Hauler 1 | . . . . . 1 Recycler 1 | . . . . . 1 Watcher 5 | . 1 . 3 1 . Swarmer 12 | . . 3 4 2 3 Grunt 22 | 1 1 . 9 6 5 Brawler 1 | . . . 1 . . Duelist 2 | . . . . 1 1 Sentry 8 | . . . 2 6 . Best Kill Streak 6 | 1 1 3 6 4 3 Combat Bots Only 6 | 1 1 3 6 4 3 Max Kills in Single Turn 2 | 1 1 2 2 1 2 Gunslinging 1 | . . 1 1 . . Exploded . | . . . . . . Melee . | . . . . . . Uniques/NPCs Destroyed . | . . . . . . Combat | -11 -10 -10 -9 -9 -8 -------- Run | Yrd Mat Min Mat Sto Mat Hostile Shots Fired 367 | 2 9 8 51 90 207 Missed 69 | . 3 2 15 19 30 Hits 298 | 2 6 6 36 71 177 Melee 10 | . . . . . 10 Projectile 288 | 2 6 6 36 71 167 Critical Strikes 10 | . . . 1 4 5 Damage Taken 3224 | 17 52 40 315 771 2029 Core 772 | 9 9 . 54 143 557 Absorbed by Shields . | . . . . . . Ignored by Resistances 940 | 5 17 12 96 220 590 Core Remaining (%) 79 | 96 . 92 . 50 . Volleys Fired 133 | 2 7 3 41 45 35 Largest 3 | 2 2 2 2 2 3 Hottest 193 | 40 40 40 88 83 193 Shots Fired 263 | 4 14 6 81 75 83 Gun 214 | 4 14 6 81 51 58 Cannon 49 | . . . . 24 25 Launcher . | . . . . . . Special . | . . . . . . Kinetic 204 | 4 14 6 78 48 54 Thermal 59 | . . . 3 27 29 Explosive . | . . . . . . Electromagnetic . | . . . . . . Robot Hit Streak 30 | 4 9 10 15 30 17 Robot Miss Streak 3 | . 1 1 3 1 2 Penetration Max . | . . . . . . Secondary Targets 6 | . . 2 3 . 1 Max Gunslinging Chain 1 | . . 1 1 . 1 Shots Hit Robots 210 | 4 11 4 61 64 66 Core Hits 85 | 2 3 3 30 22 25 Critical Kills 1 | . . . . . 1 Critical Parts Destroyed 1 | . . . . . 1 Critical Strikes 2 | . . . . . 2 Meltdown 1 | . . . . . 1 Destroy 1 | . . . . . 1 Melee Attacks . | . . . . . . Impact . | . . . . . . Slashing . | . . . . . . Piercing . | . . . . . . Sneak Attacks . | . . . . . . Combat Hostiles . | . . . . . . Follow-up Attacks . | . . . . . . Damage Inflicted 3062 | 53 131 49 902 1021 906 Guns 2357 | 53 131 49 900 631 593 Cannons 699 | . . . . 386 313 Explosions . | . . . . . . Melee . | . . . . . . Ramming 6 | . . . 2 4 . Kinetic 2203 | 53 131 49 852 582 536 Thermal 853 | . . . 48 435 370 Explosive . | . . . . . . Electromagnetic . | . . . . . . Impact . | . . . . . . Slashing . | . . . . . . Piercing . | . . . . . . Highest Corruption 2 | . . . . . 2 Average Corruption 1 | . . . . . 1 Corruption Purged . | . . . . . . Corruption Blocked . | . . . . . . Effects 3 | . . . . . 3 Matter Fused 1 | . . . . . 1 Energy Discharges 1 | . . . . . 1 Parts Rejected 1 | . . . . . 1 Overload Shots . | . . . . . . Overflow Damage . | . . . . . . Projectiles . | . . . . . . Explosions . | . . . . . . Melee . | . . . . . . Knockbacks . | . . . . . . Impact . | . . . . . . Kinetic . | . . . . . . Secondary . | . . . . . . Self-Inflicted Damage . | . . . . . . Shots . | . . . . . . Rammed 6 | . . . 1 3 2 Targets Rammed 6 | . . . 1 3 2 Kicked . | . . . . . . Crushed . | . . . . . . Highest Temperature 598 | . . . 123 174 598 Average Temperature 106 | . . . 23 49 182 Received Heat Transfer 1389 | 12 36 . 207 369 765 Effects 5 | . . . . . 5 Shutdowns 1 | . . . . . 1 Interference 3 | . . . . . 3 Matter Decay 1 | . . . . . 1 Siege Activations . | . . . . . . Martial Activations . | . . . . . . Shielding Activations . | . . . . . . Robots Disrupted . | . . . . . . Combat Hostiles . | . . . . . . Robots Corrupted . | . . . . . . Combat Hostiles . | . . . . . . Parts Fried . | . . . . . . Impact Corruptions . | . . . . . . Robots Melted 1 | . . . . . 1 Combat Hostiles 1 | . . . . . 1 Parts Melted . | . . . . . . Heat Transferred 1813 | . . . 111 925 777 Parts Sabotaged . | . . . . . . Parts Stolen . | . . . . . . Parts Stripped . | . . . . . . Power Chain Reactions . | . . . . . . Alert | -11 -10 -10 -9 -9 -8 ------- Run | Yrd Mat Min Mat Sto Mat Maximum Alert Level 1 | . . . 1 . . Low Security (%) 99 | 100 100 100 94 100 100 Level 1 . | . . . 5 . . Level 2 . | . . . . . . Level 3 . | . . . . . . Level 4 . | . . . . . . Level 5 . | . . . . . . High Security . | . . . . . . Max Security . | . . . . . . Peak Influence 215 | 20 20 70 215 133 61 Initial 61 | . . . 3 61 9 Average 33 | . 3 40 72 41 18 Influence Increases 1422 | 20 27 70 449 625 231 Destroy 0b10 Robot/C 1040 | 20 20 60 320 440 180 Destroy 0b10 Robot/NC 40 | . 5 . 15 10 10 Destroy Leader 244 | . 2 10 66 134 32 Allied During Kill 36 | . . . . 36 . Successful Hack 11 | . . . 3 . 8 Destroy Structure 6 | . . . . 5 1 Lose Combat Pursuer 45 | . . . 45 . . Influence Decreases 1422 | 20 27 60 287 772 256 Entered New Map 134 | . . . 7 111 16 Time Decay 963 | 20 27 60 190 471 195 Lost Part 105 | . . . 10 50 45 Lost Ally 140 | . . . . 140 . Purge Threat 80 | . . . 80 . . Squads Dispatched 6 | . . . 1 3 2 Investigation 3 | . . . 1 1 1 Extermination . | . . . . . . Reinforcement 2 | . . . . 2 . Assault . | . . . . . . Garrison 1 | . . . . . 1 Intercept . | . . . . . . Searches Triggered . | . . . . . . Construction Impeded . | . . . . . . Haulers Reinforced . | . . . . . . Active Scanning Responses . | . . . . . . Cargo Convoy Interrupts . | . . . . . . Stealth | -11 -10 -10 -9 -9 -8 --------- Run | Yrd Mat Min Mat Sto Mat Distress Signals 10 | . 1 . 2 3 4 Communications Jammed . | . . . . . . Distress Signals . | . . . . . . Times Spotted 77 | 1 2 2 24 24 24 Peak Tracking Total 11 | 1 2 2 10 4 11 Tactical Retreats 1 | . . . 1 . . Traps | -11 -10 -10 -9 -9 -8 ------- Run | Yrd Mat Min Mat Sto Mat Traps Triggered 6 | . . . 1 3 2 Indirectly . | . . . . . . Trap Hack Attempts . | . . . . . . Triggered . | . . . . . . Disarmed . | . . . . . . Reprogrammed . | . . . . . . Reused . | . . . . . . Traps Extracted . | . . . . . . Installed . | . . . . . . Triggered . | . . . . . . Machines | -11 -10 -10 -9 -9 -8 ---------- Run | Yrd Mat Min Mat Sto Mat Machines Disabled . | . . . . . . Max in Single Turn . | . . . . . . Machines Repaired . | . . . . . . Machines Dismantled . | . . . . . . Machines Sabotaged . | . . . . . . Overloaded Fab Kills . | . . . . . . Hacking | -11 -10 -10 -9 -9 -8 --------- Run | Yrd Mat Min Mat Sto Mat Machines Accessed 8 | . 1 . 3 2 2 Terminals 6 | . 1 . 2 2 1 Fabricators . | . . . . . . Repair Stations . | . . . . . . Recycling Units 1 | . . . 1 . . Scanalyzers 1 | . . . . . 1 Garrison Access . | . . . . . . Total Hacks 24 | . 5 . 6 6 7 Successful 20 | . 3 . 5 5 7 Failed 4 | . 2 . 1 1 . Catastrophic . | . . . . . . Database Lockouts . | . . . . . . Manual . | . . . . . . Terminals 18 | . 5 . 3 6 4 Fabricators . | . . . . . . Repair Stations . | . . . . . . Recycling Units 3 | . . . 3 . . Scanalyzers 3 | . . . . . 3 Garrison Access . | . . . . . . Terminal Hacks 14 | . 3 . 2 5 4 Record 7 | . 3 . . 4 . Robot Analysis 1 | . . . . . 1 Prototype ID Bank 1 | . . . . . 1 Emergency Access Points 1 | . . . . 1 . Alert Level 1 | . . . . . 1 Unreport Threat 1 | . . . 1 . . Locate Traps 1 | . . . 1 . . Dispatch Records 1 | . . . . . 1 Fabricator Hacks . | . . . . . . Repair Station Hacks . | . . . . . . Recycling Unit Hacks 3 | . . . 3 . . Recycle Component 2 | . . . 2 . . Report Inventory 1 | . . . 1 . . Scanalyzer 3 | . . . . . 3 Insert Component 2 | . . . . . 2 Analyze 1 | . . . . . 1 Garrison Access Hacks . | . . . . . . Unauthorized Hacks . | . . . . . . Terminals . | . . . . . . Fabricators . | . . . . . . Repair Stations . | . . . . . . Recycling Units . | . . . . . . Scanalyzers . | . . . . . . Garrison Access . | . . . . . . Data Cores Recovered . | . . . . . . Used . | . . . . . . Hacking Detections 7 | . 1 . 2 2 2 Full Trace Events 3 | . . . 1 1 1 Feedback Events . | . . . . . . Feedback Blocked . | . . . . . . Robot Schematics Acquired . | . . . . . . Robots Built . | . . . . . . Authchips . | . . . . . . Time . | . . . . . . Total Robot Build Rating . | . . . . . . Part Schematics Acquired 1 | . . . . . 1 Parts Built . | . . . . . . Authchips . | . . . . . . Time . | . . . . . . Total Part Build Rating . | . . . . . . Parts Repaired . | . . . . . . Time . | . . . . . . Parts Recycled 2 | . . . 2 . . Recycled Matter . | . . . . . . Retrieved Matter . | . . . . . . Retrieved Components . | . . . . . . Parts Scanalyzed 1 | . . . . . 1 Part Schematics Acquired 1 | . . . . . 1 Parts Damaged . | . . . . . . Bothacking | -11 -10 -10 -9 -9 -8 ------------ Run | Yrd Mat Min Mat Sto Mat Used RIF Installer . | . . . . . . Robots Hacked . | . . . . . . Non-combat . | . . . . . . Combat . | . . . . . . Robot Hacks Applied . | . . . . . . Relay Couplers Released . | . . . . . . Fabnet Peak Effective % . | . . . . . . Robots Rewired . | . . . . . . Allies Hacked . | . . . . . . Hacks Repelled . | . . . . . . Allies | -11 -10 -10 -9 -9 -8 -------- Run | Yrd Mat Min Mat Sto Mat Total Allies 10 | . . . . 10 . Largest Group 10 | . . . . 10 . Highest-Rated Group 88 | . . . . 88 . Highest-Rated Ally 16 | . . . . 16 . Total Orders . | . . . . . . Ally Attacks 60 | . . . . 60 . Total Damage 502 | . . . . 502 . Kills 8 | . . . . 8 . Allies Corrupted . | . . . . . . Allies Melted . | . . . . . . Intel | -11 -10 -10 -9 -9 -8 ------- Run | Yrd Mat Min Mat Sto Mat Active Infowar (turns) . | . . . . . . Robot Analysis Total 1 | . . . . . 1 Derelict Logs Recovered 1 | . . 1 . . . Drone Launches . | . . . . . . Drone Recoveries . | . . . . . . Exploration | -11 -10 -10 -9 -9 -8 ------------- Run | Yrd Mat Min Mat Sto Mat Turns Passed 2999 | 416 142 130 452 1223 636 Spaces Moved 1311 | 179 107 118 239 462 206 Core 26 | 21 . . . 2 3 Treads 706 | . . . 43 460 203 Legs . | . . . . . . Wheels 579 | 158 107 118 196 . . Hover . | . . . . . . Flight . | . . . . . . Fastest Speed 50 | 50 80 95 95 160 240 Average Speed 165 | 76 92 95 121 221 244 Slowest Speed 650 | 80 95 95 240 550 650 Overloaded Moves . | . . . . . . Propulsion Burnouts . | . . . . . . Robots Hopped . | . . . . . . Potential Cave-ins . | . . . . . . Cave-ins Triggered . | . . . . . . Exploration Rate (%) 27 | 10 18 27 20 70 19 Regions Visited 5 Branch Regions 2 Pre-discovered Areas . | . . . . . . Known Exits Taken . | . . . . . . Unknown Exits Taken 5 | 1 1 1 1 1 . Scrap Searched 1 | . . 1 . . . Spaces Dug . | . . . . . . Terrain Destroyed . | . . . . . . Melee . | . . . . . . Projectile . | . . . . . . AOE . | . . . . . . Terrain Rammed . | . . . . . . Walls Destroyed . | . . . . . . Machines Disabled . | . . . . . . Actions | -11 -10 -10 -9 -9 -8 --------- Run | Yrd Mat Min Mat Sto Mat Total 1890 | 453 136 130 319 585 267 Wait 315 | 261 9 . 16 29 . Move 1306 | 178 106 117 238 461 206 Hop . | . . . . . . Pick Up 49 | 7 9 8 8 12 5 Fast Attach 4 | . . . . 3 1 Attach 27 | 5 3 . 3 6 10 Detach 2 | . 1 . . . 1 Swap 21 | . 1 . 8 11 1 Drop 23 | . . 2 4 11 6 Fire 133 | 2 7 3 41 45 35 Melee . | . . . . . . Ram 2 | . . . . . 2 Kick . | . . . . . . Crush 4 | . . . 1 3 . Escape Stasis 4 | . . . . 4 . Rewire . | . . . . . . Trap . | . . . . . . Miscellaneous . | . . . . . . Route ------- -11/Scrapyard -10/Materials -10/Mines (discovered 2 exits: *Mat x2) -9/Materials (discovered 3 exits: *Min x2 / *Sto) -9/Storage -8/Materials History --------- Turn | Location | Event 2 | -11/Scrapyard | Met Revision 17 50 | -11/Scrapyard | Discovered new exit (range 8) 417 | -11/Scrapyard | Entered Materials 418 | -10/Materials | Build established: Mutant 541 | -10/Materials | Discovered new exit (range 7) 559 | -10/Materials | Entered Mines 590 | -10/Mines | Met a Derelict bent on vengeance 641 | -10/Mines | Discovered new exit (range 5) 677 | -10/Mines | Discovered new exit (range 8) 689 | -10/Mines | Entered Materials 689 | -9/Materials | Evolved 2 slots: Power x1, Utility x1 690 | -9/Materials | Identified exit to Mines 1078 | -9/Materials | Discovered new exit (range 15) 1141 | -9/Materials | Entered Storage 1267 | -9/Storage | Lost 5 parts (2p2n1u) 1534 | -9/Storage | Build established: Scavenger-Mutant 1581 | -9/Storage | Assisted by bots powering up and referring to "LRC-V3" 1783 | -9/Storage | Lost 4 allies 2324 | -9/Storage | Discovered new exit (range 15) 2364 | -9/Storage | Entered Materials 2364 | -8/Materials | Evolved 2 slots: Utility x1, Weapon x1 2658 | -8/Materials | Build established: Scavenger-Gunner 2903 | -8/Materials | Garrison activated, responded to threat 2965 | -8/Materials | Core integrity fell below 50% 2998 | -8/Materials | Core integrity fell below 20% 3000 | -8/Materials | Destroyed by G-47 Trooper with Particle Gun Last Messages --------------- Penetrated by Slug. K-01 Serf collects debris. Penetrated by Slug. K-01 Serf collects debris. Penetrated by Slug. Slug penetrates Wall. K-01 Serf collects debris. U-05 Engineer builds a Door. Knocked back. K-01 Serf collects debris. Lgt. Assault Rifle destroyed. Critical hit (Burn: +37). U-05 Engineer builds a Wall. Slammed into B-36 Bruiser. Penetrated by Slug. Hvy. Armor Plating destroyed. Lrg. Matter Pod destroyed. R-06 Scavenger collects Prototype Ballistic Gun. Slammed into B-36 Bruiser. Penetrated by Slug. Map ----- +----------------------------------------------------+ | ?????????????????????????????????????????????????? | | ?????????????????????????????????????????????????? | | #########????????????????????????????????????????? | | #????????????????????????????????????????? | | """"""" #????????????????????????????????????????? | | """"""" #????????????????????????????????????????? | | """"""" #????????????????????????????????????????? | | """"""" #############????????????????????????????? | | """"""" ## ! ! #????????????????????????????? | | ## """ #????????????????????????????? | | ## """ "" #????????????????????????????? | | ##+###+### """ S"" #????????????????????????????? | | + = "" #????????????????????????????? | | ######+#########?????????????#??????????? | | %% #??????????? # ?????????? | | ^% #? ???????? +??????????? | | %""" """ / ???????? #??????????? | | """ "%" #????????? #??????????? | | # """ ""% #?????????[! #??????????? | | # ######## *% #????????[%[ #??????????? | | # #= ## % #########[ r #??????????? | | # # ##^ """k # ????????? | | # # ]##t! """ h u + ????????? | | # # ##!! "%% m !*% #??????????? | | # # """ ## w % gghgg% #??????????? | | # # """ ## @ba #??????????? | | # # """ ## ############+#### #???????????? | | # # ## # # #???????????????? | | # # """ ## # # % #???????????????? | | # + """ ## + # """ + ?????????????? | | # # """ ## # # """ # #???????????? | | # # ## # """# """ #? #???????????? | | # ######## # """# "" #?? #???????????? | | # # ### ## """# S"" #???#???????????? | | + # """ #?# ## # "" #???????????????? | | # # """ #?# ## """###########???????????????? | | # + """ #?# ## """#?????????????????????????? | | # # """ #?# ## """#?????????????????????????? | | # # """ #?# ?# #?????????????????????????? | | # # #?# ?#######?????????????????????????? | | ###########?# ?????????????????????????????????? | | ????????????# ?????????????????????????????????? | | ????????????# ?????????????????????????????????? | | ????????????# ?????????????????????????????????? | | ?????????????? ??????????????????????????????????? | | ?????????????????????????????????????????????????? | | ?????????????????????????????????????????????????? | | ?????????????????????????????????????????????????? | | ?????????????????????????????????????????????????? | | ?????????????????????????????????????????????????? | +----------------------------------------------------+ Best States ------------- Heat Dissipation 31 Energy Generation 19 Energy Capacity 430 Matter Stores 487 Matter Capacity 550 Sight Range 16 Terrain Scan Density 10 Armor Coverage 600 Resistance: KI 20 Resistance: TH 20 Resistance: EX 20 Resistance: EM 20 Resistance: I 20 Resistance: S 20 Resistance: P 20 Evasion (%) 50 Targeting Accuracy 5 Recoil Reduction 2 Offensive Hacking 10 Item Schematics ----------------- Particle Gun | -8/Materials | Scanalyzed Robot Schematics ------------------ None Fabricated ------------ Nothing Repaired ---------- Nothing Alien Tech Used ----------------- None Achievements -------------- Everything Is Under Control It's Just You One Hack Too Far Risk Taker The More The Merrier Troublemaker Uninvited Guest Challenges ------------ None Game ------ Seed TractorDeliveryLeg Manual? 0 Play Time 00:40:32 Cumulative 1.1 hours Start 2025.07.19 @ 14:14:05 End 2025.07.19 @ 15:12:27 Sessions 1 Manual Loads 0 Difficulty Adventurer Special Mode None Game No. 2 Rogue 0 Adventurer 2 Explorer 0 Win Type - Total 0 Types 0/0/0/0/0/0/0/0/0/0 Lore% 0 Gallery% 3 Achievement% 4 Wizard Run 0 Options --------- Layout 1 ASCII 0 Keyboard 0 Movement Arrows Keybinds 0 Fullscreen 1 Font 24/Smallcaps Map View 50x35 Zoom Use 0% Tactical HUD 0 Map Filters NONE Filters NONE Steam 0 RUN: 52dbaa5d-50a4-4885-8a1c-d12829567669